fUSD/lending_fUSD_20260606
["ID","MTS","AMOUNT","RATE_DAILY","PERIOD"]
[424250259,1780705865000,-930.02453638,0.00030137,120]
[424250260,1780705865000,-930.00122682,0.00030137,120]
[424250261,1780705865000,-930.00006134,0.00030137,120]
[424250251,1780705865000,-151.86318885,0.00030137,5]
[424250257,1780705865000,-939.81455342,0.00030137,120]
[424250252,1780705865000,-552.43,0.00030137,2]
[424250253,1780705865000,-552.43,0.00030137,30]
[424250256,1780705865000,-1126.29106841,0.00030137,120]
[424250258,1780705865000,-930.49072767,0.00030137,120]
[424250254,1780705865000,-500.0,0.00030137,120]
[424250262,1780705865000,-930.00000307,0.00030137,120]
[424250263,1780705865000,-930.00000015,0.00030137,120]
[424250255,1780705865000,-344.45,0.00030137,120]
[424250264,1780705865000,-930.00000001,0.00030137,120]
[424250265,1780705865000,-344.45,0.00030137,2]
[424250266,1780705865000,-359.11,0.00030137,2]
[424250272,1780705865000,-200.0,0.00030137,2]
[424250291,1780705865000,-150.0,0.00030137,2]
[424250300,1780705865000,-150.0,0.00030137,2]
[424250292,1780705865000,-150.0,0.00030137,2]
[424250335,1780705865000,-150.0,0.00030137,2]
[424250333,1780705865000,-324.01,0.00030137,2]
[424250334,1780705865000,-150.0,0.00030137,2]
[424250332,1780705865000,-150.0,0.00030137,2]
[424250338,1780705865000,-150.0,0.00030137,2]
[424250340,1780705865000,-150.0,0.00030137,2]
[424250339,1780705865000,-150.0,0.00030137,2]
[424250341,1780705865000,-453.57540836,0.00030137,14]
[424250343,1780705865000,-1412.28688489,0.00030137,120]
[424250342,1780705865000,-200.0,0.00030137,2]
[424250344,1780705865000,-15818.19369136,0.000302,2]
[424250346,1780705865000,-355.538347,0.000302,2]
[424250347,1780705865000,-253.13,0.000302,2]
[424250345,1780705865000,-260.967767,0.000302,2]
[424250349,1780705865000,-233.432405,0.000302,4]
[424250351,1780705865000,-1013.38,0.000302,30]
[424250352,1780705865000,-400.79,0.00030236,30]
[424250354,1780705865000,-4071.0,0.00030239,2]
[424250353,1780705865000,-400.8,0.00030236,30]
[424250358,1780705865000,-791.0,0.00030355,30]
[424250350,1780705865000,-622.159824,0.000302,6]
[424250359,1780705865000,-1014.0,0.00030355,30]
[424250360,1780705865000,-574.0,0.00030355,30]
[424250356,1780705865000,-880.79,0.000303,14]
[424250355,1780705865000,-14165.05,0.00030291,7]
[424250357,1780705865000,-641.0,0.00030341,5]
[424250294,1780705865000,-150.0,0.00030137,2]
[424250330,1780705865000,-150.0,0.00030137,2]
[424250331,1780705865000,-150.0,0.00030137,2]
[424250348,1780705865000,-990.48,0.000302,2]
[424250328,1780705865000,-150.0,0.00030137,2]
[424250303,1780705865000,-150.0,0.00030137,2]
[424250325,1780705865000,-150.0,0.00030137,2]
[424250302,1780705865000,-150.0,0.00030137,2]
[424250305,1780705865000,-150.0,0.00030137,2]
[424250311,1780705865000,-150.0,0.00030137,2]
[424250304,1780705865000,-150.0,0.00030137,2]
[424250308,1780705865000,-150.0,0.00030137,2]
[424250310,1780705865000,-150.0,0.00030137,2]
[424250307,1780705865000,-150.0,0.00030137,2]
[424250306,1780705865000,-150.0,0.00030137,2]
[424250312,1780705865000,-150.0,0.00030137,2]
[424250313,1780705865000,-150.0,0.00030137,2]
[424250317,1780705865000,-150.0,0.00030137,2]
[424250314,1780705865000,-150.0,0.00030137,2]
[424250309,1780705865000,-150.0,0.00030137,2]
[424250321,1780705865000,-150.0,0.00030137,2]
[424250324,1780705865000,-150.0,0.00030137,2]
[424250318,1780705865000,-150.0,0.00030137,2]
[424250316,1780705865000,-150.0,0.00030137,2]
[424250319,1780705865000,-150.0,0.00030137,2]
[424250323,1780705865000,-150.0,0.00030137,2]
[424250320,1780705865000,-150.0,0.00030137,2]
[424250322,1780705865000,-150.0,0.00030137,2]
[424250326,1780705865000,-150.0,0.00030137,2]
[424250336,1780705865000,-150.0,0.00030137,2]
[424250337,1780705865000,-150.0,0.00030137,2]
[424250315,1780705865000,-150.0,0.00030137,2]
[424250327,1780705865000,-150.0,0.00030137,2]
[424250329,1780705865000,-150.0,0.00030137,2]
[424250404,1780705866000,-624.16551028,0.00030469,2]
[424250405,1780705866000,-421.50529013,0.00030469,2]
[424250391,1780705866000,-670.13252645,0.00030469,2]
[424250398,1780705866000,-584.6861633,0.00030469,2]
[424250407,1780705866000,-460.13773585,0.00030469,2]
[424250406,1780705866000,-861.57135057,0.00030469,2]
[424250394,1780705866000,-150.51900411,0.00030469,2]
[424250401,1780705866000,-654.7625855,0.00030469,2]
[424250402,1780705866000,-444.61150977,0.00030469,2]
[424250400,1780705866000,-442.93396391,0.00030469,2]
[424250399,1780705866000,-157.68801761,0.00030469,2]
[424250409,1780705866000,-178.28967843,0.00030469,2]
[424250397,1780705866000,-212.94586999,0.00030469,2]
[424250403,1780705866000,-515.46193697,0.00030469,2]
[424250420,1780705866000,-308.95544412,0.00030469,2]
[424250410,1780705866000,-168.98315568,0.00030469,2]
[424250416,1780705866000,-745.27983548,0.00030469,2]
[424250424,1780705866000,-660.1840551,0.00030469,2]
[424250413,1780705866000,-170.30248078,0.00030469,2]
[424250414,1780705866000,-613.22321326,0.00030469,2]
[424250412,1780705866000,-168.06279881,0.00030469,2]
[424250417,1780705866000,-427.39977061,0.00030469,2]
[424250411,1780705866000,-794.05280956,0.00030469,2]
[424250421,1780705866000,-416.07870238,0.00030469,2]
[424250418,1780705866000,-402.18308405,0.00030469,2]
[424250422,1780705866000,-371.20028006,0.00030469,2]
[424250419,1780705866000,-563.10489353,0.00030469,2]
[424250423,1780705866000,-486.66674875,0.00030469,2]
[424250388,1780705866000,-346.90103295,0.00030469,2]
[424250408,1780705866000,-412.40664373,0.00030469,2]
[424250390,1780705866000,-1309.46449797,0.00030469,2]
[424250371,1780705866000,-833.92535152,0.00030388,2]
[424250387,1780705866000,-154.86804363,0.00030469,2]
[424250365,1780705866000,-3806.0,0.00030355,30]
[424250363,1780705866000,-1022.0,0.00030355,30]
[424250361,1780705866000,-2590.0,0.00030355,30]
[424250372,1780705866000,-1390.8,0.000304,7]
[424250362,1780705866000,-3440.0,0.00030355,30]
[424250366,1780705866000,-638.0,0.00030355,30]
[424250364,1780705866000,-587.0,0.00030355,30]
[424250368,1780705866000,-3833.0,0.00030356,30]
[424250367,1780705866000,-704.0,0.00030355,30]
[424250370,1780705866000,-668.65185756,0.00030388,2]
[424250369,1780705866000,-179.97120458,0.00030362,2]
[424250374,1780705866000,-180.79,0.00030411,120]
[424250377,1780705866000,-800.0,0.00030434,30]
[424250384,1780705866000,-344.45,0.00030466,120]
[424250379,1780705866000,-408.0,0.00030434,30]
[424250376,1780705866000,-1982.27,0.00030433,7]
[424250375,1780705866000,-684.4,0.0003042,7]
[424250378,1780705866000,-1691.0,0.00030434,30]
[424250373,1780705866000,-2316.87,0.000304,7]
[424250380,1780705866000,-200.0,0.00030438,2]
[424250383,1780705866000,-200.0,0.00030438,2]
[424250381,1780705866000,-200.0,0.00030438,2]
[424250382,1780705866000,-200.0,0.00030438,2]
[424250385,1780705866000,-572.95,0.00030466,2]
[424250386,1780705866000,-185.01,0.00030466,2]
[424250395,1780705866000,-456.23406909,0.00030469,2]
[424250396,1780705866000,-300.39656513,0.00030469,2]
[424250392,1780705866000,-536.04726214,0.00030469,2]
[424250393,1780705866000,-330.10677321,0.00030469,2]
[424250389,1780705866000,-653.16572114,0.00030469,2]
[424250427,1780705866000,-1673.72594129,0.00030469,2]
[424250415,1780705866000,-1533.05404257,0.00030469,2]
[424250426,1780705866000,-402.20972761,0.00030469,2]
[424250462,1780705866000,-690.3544381,0.00030532,2]
[424250459,1780705866000,-456.76290369,0.00030532,2]
[424250461,1780705866000,-727.7536669,0.00030532,2]
[424250460,1780705866000,-193.36365148,0.00030532,2]
[424250467,1780705866000,-549.80210897,0.00030554,2]
[424250466,1780705866000,-633.05221093,0.00030554,2]
[424250477,1780705866000,-617.04627578,0.00030554,2]
[424250470,1780705866000,-746.59215272,0.00030554,2]
[424250478,1780705866000,-599.62667407,0.00030554,2]
[424250479,1780705866000,-405.48865826,0.00030554,2]
[424250468,1780705866000,-814.08103444,0.00030554,2]
[424250469,1780705866000,-535.28277997,0.00030554,2]
[424250475,1780705866000,-751.87280632,0.00030554,2]
[424250476,1780705866000,-492.39587156,0.00030554,2]
[424250465,1780705866000,-648.59218558,0.00030554,2]
[424250472,1780705866000,-776.69627828,0.00030554,2]
[424250471,1780705866000,-650.66728218,0.00030554,2]
[424250474,1780705866000,-530.81095139,0.00030554,2]
[424250480,1780705866000,-624.40206316,0.00030554,2]
[424250482,1780705866000,-699.85109958,0.00030554,2]
[424250485,1780705866000,-588.32833982,0.00030554,2]
[424250490,1780705866000,-723.17553721,0.00030695,2]
[424250488,1780705866000,-766.94979719,0.00030695,2]
[424250483,1780705866000,-435.46553986,0.00030554,2]
[424250491,1780705866000,-3297.90507004,0.00030696,2]
[424250481,1780705866000,-628.42522983,0.00030554,2]
[424250487,1780705866000,-344.45,0.0003063,120]
[424250489,1780705866000,-606.26070788,0.00030695,2]
[424250484,1780705866000,-622.1464237,0.00030554,2]
[424250429,1780705866000,-165.70335479,0.00030469,2]
[424250473,1780705866000,-601.38129181,0.00030554,2]
[424250456,1780705866000,-803.12994658,0.00030532,2]
[424250486,1780705866000,-649.7250049,0.00030562,2]
[424250453,1780705866000,-472.08804397,0.00030532,2]
[424250428,1780705866000,-169.02422643,0.00030469,2]
[424250434,1780705866000,-665.23520646,0.00030469,2]
[424250430,1780705866000,-170.95079609,0.00030469,2]
[424250436,1780705866000,-430.24250619,0.00030469,2]
[424250435,1780705866000,-315.65352557,0.00030469,2]
[424250433,1780705866000,-676.37671244,0.00030469,2]
[424250432,1780705866000,-326.49332156,0.00030469,2]
[424250431,1780705866000,-1453.61662062,0.00030469,2]
[424250464,1780705866000,-435.11333649,0.00030532,2]
[424250437,1780705866000,-720.05012467,0.00030469,2]
[424250439,1780705866000,-726.50702076,0.00030469,2]
[424250445,1780705866000,-643.86,0.00030475,2]
[424250446,1780705866000,-358.28345372,0.00030485,2]
[424250451,1780705866000,-487.53702531,0.00030532,2]
[424250449,1780705866000,-629.68675905,0.00030492,2]
[424250425,1780705866000,-659.047298,0.00030469,2]
[424250447,1780705866000,-193.40856996,0.00030492,2]
[424250458,1780705866000,-633.75336748,0.00030532,2]
[424250448,1780705866000,-782.20902332,0.00030492,2]
[424250455,1780705866000,-648.81351306,0.00030532,2]
[424250454,1780705866000,-449.9545782,0.00030532,2]
[424250457,1780705866000,-689.66714708,0.00030532,2]
[424250452,1780705866000,-673.85727577,0.00030532,2]
[424250463,1780705866000,-687.65297718,0.00030532,2]
[424250444,1780705866000,-287.20890148,0.00030475,2]
[424250443,1780705866000,-547.17257134,0.00030469,2]
[424250441,1780705866000,-622.05082779,0.00030469,2]
[424250442,1780705866000,-160.43311238,0.00030469,2]
[424250438,1780705866000,-703.41355258,0.00030469,2]
[424250450,1780705866000,-704.19962627,0.00030492,2]
[424250440,1780705866000,-849.78632373,0.00030469,2]
[424250530,1780705867000,-777.56353474,0.00031049,2]
[424250537,1780705867000,-787.10844881,0.00031072,2]
[424250535,1780705867000,-179.97120458,0.00031057,2]
[424250531,1780705867000,-200.0,0.0003105,2]
[424250532,1780705867000,-200.0,0.0003105,2]
[424250529,1780705867000,-1062.23290466,0.00031049,2]
[424250526,1780705867000,-900.06265583,0.00031049,2]
[424250534,1780705867000,-200.0,0.0003105,2]
[424250524,1780705867000,-2092.15742661,0.00031049,2]
[424250527,1780705867000,-879.26694072,0.00031049,2]
[424250528,1780705867000,-908.13377595,0.00031049,2]
[424250525,1780705867000,-1817.02077577,0.00031049,2]
[424250540,1780705867000,-862.08393386,0.00031113,2]
[424250549,1780705867000,-3299.73499116,0.00031154,2]
[424250539,1780705867000,-339.38,0.000311,6]
[424250536,1780705867000,-977.76127915,0.00031072,2]
[424250541,1780705867000,-1003.91243323,0.00031113,2]
[424250545,1780705867000,-751.72661476,0.00031136,2]
[424250544,1780705867000,-970.87034785,0.00031136,2]
[424250542,1780705867000,-792.19170934,0.00031113,2]
[424250546,1780705867000,-771.30784472,0.00031136,2]
[424250547,1780705867000,-785.53153729,0.00031136,2]
[424250550,1780705867000,-248.383259,0.000312,4]
[424250552,1780705867000,-1000.0,0.000312,7]
[424250548,1780705867000,-777.68302962,0.00031136,2]
[424250553,1780705867000,-250.663305,0.000312,4]
[424250551,1780705867000,-278.653215,0.000312,4]
[424250522,1780705867000,-825.23006887,0.00031049,2]
[424250538,1780705867000,-880.24953284,0.00031072,2]
[424250533,1780705867000,-200.0,0.0003105,2]
[424250499,1780705867000,-1102.43,0.00030796,7]
[424250519,1780705867000,-992.56601195,0.00031049,2]
[424250543,1780705867000,-810.74023198,0.00031136,2]
[424250493,1780705867000,-200.0,0.00030743,2]
[424250492,1780705867000,-179.97120458,0.00030709,2]
[424250505,1780705867000,-911.12732323,0.000309,120]
[424250495,1780705867000,-200.0,0.00030743,2]
[424250507,1780705867000,-250.0,0.00030969,7]
[424250494,1780705867000,-200.0,0.00030743,2]
[424250500,1780705867000,-1214.32,0.00030796,7]
[424250506,1780705867000,-204.69,0.00030953,4]
[424250502,1780705867000,-1638.72083584,0.0003084,2]
[424250498,1780705867000,-450.90288902,0.00030788,7]
[424250503,1780705867000,-641.0,0.00030875,6]
[424250504,1780705867000,-769.13,0.00030885,30]
[424250497,1780705867000,-49372.86747099,0.00030788,7]
[424250496,1780705867000,-200.0,0.00030743,2]
[424250501,1780705867000,-152.0,0.00030812,6]
[424250508,1780705867000,-3299.73499116,0.00030988,2]
[424250518,1780705867000,-818.45323187,0.00031049,2]
[424250517,1780705867000,-837.66565806,0.00031049,2]
[424250520,1780705867000,-1916.31755321,0.00031049,2]
[424250512,1780705867000,-5000.0,0.00031,30]
[424250521,1780705867000,-931.59979435,0.00031049,2]
[424250516,1780705867000,-1636.83062246,0.00031049,2]
[424250514,1780705867000,-3641.0,0.00031005,2]
[424250511,1780705867000,-351.13159668,0.00031,5]
[424250513,1780705867000,-6072.0,0.00031005,2]
[424250515,1780705867000,-150.0,0.00031011,2]
[424250510,1780705867000,-2316.87,0.00031,7]
[424250509,1780705867000,-1390.8,0.00031,7]
[424250523,1780705867000,-823.8091225,0.00031049,2]
[424250555,1780705867000,-259.23326,0.000312,4]
[424250565,1780705867000,-643.86,0.00031289,2]
[424250554,1780705867000,-259.23326,0.000312,4]
[424250588,1780705867000,-408.0,0.00031434,30]
[424250589,1780705867000,-3297.90507004,0.00031481,2]
[424250585,1780705867000,-3528.58205906,0.0003143,4]
[424250591,1780705867000,-201.02373753,0.000315,2]
[424250592,1780705867000,-150.0,0.000315,2]
[424250590,1780705867000,-3299.73499116,0.00031484,2]
[424250596,1780705867000,-162.0,0.00031507,30]
[424250607,1780705867000,-179.97120458,0.00031752,2]
[424250602,1780705867000,-3299.73499116,0.00031648,2]
[424250597,1780705867000,-552.43,0.00031507,30]
[424250600,1780705867000,-2316.87,0.000316,7]
[424250601,1780705867000,-150.0,0.00031644,2]
[424250603,1780705867000,-3297.90507004,0.00031657,2]
[424250584,1780705867000,-641.0,0.00031409,6]
[424250606,1780705867000,-3299.73499116,0.00031721,2]
[424250598,1780705867000,-3299.73499116,0.00031569,2]
[424250604,1780705867000,-1068.34,0.00031693,7]
[424250609,1780705867000,-3297.90507004,0.00031806,2]
[424250611,1780705867000,-3299.73499116,0.00031917,2]
[424250608,1780705867000,-3299.73499116,0.0003179,2]
[424250610,1780705867000,-3299.73499116,0.00031855,2]
[424250613,1780705867000,-982.14387825,0.0003192,2]
[424250612,1780705867000,-1964.19674695,0.0003192,2]
[424250616,1780705867000,-988.570947,0.0003192,2]
[424250618,1780705867000,-2180.42493093,0.0003192,2]
[424250614,1780705867000,-2299.58106385,0.0003192,2]
[424250617,1780705867000,-2510.58891194,0.0003192,2]
[424250615,1780705867000,-990.27608265,0.0003192,2]
[424250599,1780705867000,-1390.8,0.000316,7]
[424250582,1780705867000,-3299.73499116,0.00031389,2]
[424250605,1780705867000,-1176.77,0.00031693,7]
[424250586,1780705867000,-800.0,0.00031434,30]
[424250567,1780705867000,-791.0,0.00031355,30]
[424250587,1780705867000,-1691.0,0.00031434,30]
[424250566,1780705867000,-396.01,0.00031295,2]
[424250560,1780705867000,-3297.90507004,0.00031251,2]
[424250563,1780705867000,-903.96942151,0.00031279,2]
[424250564,1780705867000,-3299.73499116,0.00031281,2]
[424250559,1780705867000,-497.8960246,0.0003122,60]
[424250556,1780705867000,-587.246668,0.000312,4]
[424250561,1780705867000,-958.68724649,0.00031279,2]
[424250562,1780705867000,-757.82588485,0.00031279,2]
[424250558,1780705867000,-1400.0,0.0003122,60]
[424250568,1780705867000,-1014.0,0.00031355,30]
[424250571,1780705867000,-3440.0,0.00031355,30]
[424250569,1780705867000,-574.0,0.00031355,30]
[424250570,1780705867000,-2590.0,0.00031355,30]
[424250557,1780705867000,-500.0,0.0003122,60]
[424250594,1780705867000,-382.0,0.00031501,2]
[424250573,1780705867000,-587.0,0.00031355,30]
[424250593,1780705867000,-1273.0,0.00031501,2]
[424250583,1780705867000,-179.97120458,0.00031405,2]
[424250579,1780705867000,-200.0,0.00031361,2]
[424250581,1780705867000,-200.0,0.00031361,2]
[424250578,1780705867000,-200.0,0.00031361,2]
[424250574,1780705867000,-3806.0,0.00031355,30]
[424250575,1780705867000,-638.0,0.00031355,30]
[424250576,1780705867000,-704.0,0.00031355,30]
[424250577,1780705867000,-3833.0,0.00031356,30]
[424250572,1780705867000,-1022.0,0.00031355,30]
[424250580,1780705867000,-200.0,0.00031361,2]
[424250595,1780705867000,-1227.0,0.00031501,2]
[424250675,1780705868000,-3299.73499116,0.00032288,2]
[424250660,1780705868000,-3297.90507004,0.00032056,2]
[424250664,1780705868000,-3299.73499116,0.0003214,2]
[424250674,1780705868000,-3297.90507004,0.00032266,2]
[424250658,1780705868000,-3299.73499116,0.00032033,2]
[424250661,1780705868000,-3299.73499116,0.00032087,2]
[424250650,1780705868000,-357.42906227,0.00032,120]
[424250662,1780705868000,-179.97120458,0.000321,2]
[424250659,1780705868000,-350.0,0.00032045,22]
[424250651,1780705868000,-298.86994577,0.00032,120]
[424250652,1780705868000,-849.54826591,0.00032,120]
[424250665,1780705868000,-1150.42469579,0.00032154,2]
[424250656,1780705868000,-902.07193771,0.00032008,2]
[424250663,1780705868000,-482.08,0.00032118,2]
[424250682,1780705868000,-699.951216,0.00032329,7]
[424250669,1780705868000,-3299.73499116,0.00032191,2]
[424250670,1780705868000,-342.37,0.00032192,2]
[424250668,1780705868000,-3297.90507004,0.00032165,2]
[424250673,1780705868000,-3299.73499116,0.0003224,2]
[424250667,1780705868000,-1084.76330581,0.00032154,2]
[424250672,1780705868000,-4071.0,0.0003221,5]
[424250671,1780705868000,-1390.8,0.000322,7]
[424250676,1780705868000,-911.03436574,0.000323,2]
[424250678,1780705868000,-699.951216,0.00032329,7]
[424250679,1780705868000,-699.951216,0.00032329,7]
[424250680,1780705868000,-699.951216,0.00032329,7]
[424250677,1780705868000,-699.951216,0.00032329,7]
[424250681,1780705868000,-699.951216,0.00032329,7]
[424250657,1780705868000,-925.56941366,0.00032008,2]
[424250666,1780705868000,-909.39106182,0.00032154,2]
[424250655,1780705868000,-972.88827838,0.00032008,2]
[424250621,1780705868000,-3297.90507004,0.00031937,2]
[424250653,1780705868000,-700.0,0.00032,2]
[424250619,1780705868000,-1089.76053114,0.0003192,2]
[424250684,1780705868000,-699.951216,0.00032329,7]
[424250620,1780705868000,-1274.67948559,0.0003192,2]
[424250622,1780705868000,-641.0,0.00031943,7]
[424250623,1780705868000,-944.53013857,0.00031943,2]
[424250626,1780705868000,-3299.73499116,0.00031976,2]
[424250624,1780705868000,-1056.29943941,0.00031943,2]
[424250625,1780705868000,-284.09668285,0.0003197,7]
[424250627,1780705868000,-1764.21729944,0.00032,2]
[424250628,1780705868000,-41448.01030234,0.00032,10]
[424250629,1780705868000,-467.0,0.00032,5]
[424250632,1780705868000,-1422.88445344,0.00032,120]
[424250634,1780705868000,-537.43448418,0.00032,120]
[424250631,1780705868000,-333.99681997,0.00032,120]
[424250654,1780705868000,-14165.05,0.00032006,14]
[424250630,1780705868000,-1059.83107088,0.00032,120]
[424250645,1780705868000,-1617.55971657,0.00032,120]
[424250646,1780705868000,-327.35912312,0.00032,120]
[424250648,1780705868000,-1496.65364586,0.00032,120]
[424250635,1780705868000,-271.84335937,0.00032,120]
[424250644,1780705868000,-591.10394002,0.00032,120]
[424250647,1780705868000,-464.23258435,0.00032,120]
[424250636,1780705868000,-915.84880728,0.00032,120]
[424250640,1780705868000,-383.07251658,0.00032,120]
[424250637,1780705868000,-589.99031754,0.00032,120]
[424250642,1780705868000,-1689.89123066,0.00032,120]
[424250639,1780705868000,-278.27015964,0.00032,120]
[424250641,1780705868000,-621.75348237,0.00032,120]
[424250643,1780705868000,-1484.84558265,0.00032,120]
[424250649,1780705868000,-577.6521897,0.00032,120]
[424250633,1780705868000,-1450.48222787,0.00032,120]
[424250685,1780705868000,-699.951216,0.00032329,7]
[424250638,1780705868000,-514.12336182,0.00032,120]
[424250688,1780705868000,-699.951216,0.00032329,7]
[424250730,1780705868000,-3299.73499116,0.00032671,2]
[424250727,1780705868000,-3297.90507004,0.00032619,2]
[424250721,1780705868000,-3299.73499116,0.0003251,2]
[424250722,1780705868000,-3297.90507004,0.00032537,2]
[424250724,1780705868000,-150.0,0.00032562,2]
[424250723,1780705868000,-3299.73499116,0.00032551,2]
[424250720,1780705868000,-1007.12032433,0.000325,7]
[424250717,1780705868000,-3297.90507004,0.00032451,2]
[424250726,1780705868000,-1357.55,0.000326,120]
[424250725,1780705868000,-3299.73499116,0.00032592,2]
[424250731,1780705868000,-3297.90507004,0.00032697,2]
[424250733,1780705868000,-3299.73499116,0.00032709,2]
[424250735,1780705868000,-3297.90507004,0.00032773,2]
[424250734,1780705868000,-3299.73499116,0.00032746,2]
[424250729,1780705868000,-1250.73,0.00032668,2]
[424250732,1780705868000,-713.387477,0.000327,8]
[424250740,1780705868000,-152.0,0.00032828,7]
[424250737,1780705868000,-179.97120458,0.00032795,2]
[424250738,1780705868000,-4923.77379024,0.000328,2]
[424250739,1780705868000,-3299.73499116,0.0003282,2]
[424250743,1780705868000,-500.0,0.00032864,60]
[424250742,1780705868000,-3299.73499116,0.00032855,2]
[424250745,1780705868000,-164.598437,0.00032867,8]
[424250744,1780705868000,-1400.0,0.00032864,60]
[424250747,1780705868000,-385.80604391,0.00032876,2]
[424250746,1780705868000,-425.76176606,0.00032876,2]
[424250748,1780705868000,-596.42754814,0.00032876,2]
[424250750,1780705868000,-500.0,0.00032876,2]
[424250749,1780705868000,-360.95651026,0.00032876,2]
[424250689,1780705868000,-699.951216,0.00032329,7]
[424250736,1780705868000,-3299.73499116,0.00032783,2]
[424250719,1780705868000,-641.0,0.00032477,7]
[424250741,1780705868000,-3297.90507004,0.00032846,2]
[424250728,1780705868000,-3299.73499116,0.00032632,2]
[424250718,1780705868000,-3299.73499116,0.00032468,2]
[424250686,1780705868000,-699.951216,0.00032329,7]
[424250683,1780705868000,-699.951216,0.00032329,7]
[424250687,1780705868000,-699.951216,0.00032329,7]
[424250691,1780705868000,-699.951216,0.00032329,7]
[424250701,1780705868000,-2590.0,0.00032355,30]
[424250690,1780705868000,-699.951216,0.00032329,7]
[424250703,1780705868000,-1022.0,0.00032355,30]
[424250692,1780705868000,-699.951216,0.00032329,7]
[424250693,1780705868000,-699.951216,0.00032329,7]
[424250695,1780705868000,-699.951216,0.00032329,7]
[424250700,1780705868000,-574.0,0.00032355,30]
[424250696,1780705868000,-699.951218,0.00032329,7]
[424250697,1780705868000,-3299.73499116,0.00032335,2]
[424250699,1780705868000,-1014.0,0.00032355,30]
[424250702,1780705868000,-3440.0,0.00032355,30]
[424250694,1780705868000,-699.951216,0.00032329,7]
[424250714,1780705868000,-1691.0,0.00032434,30]
[424250698,1780705868000,-791.0,0.00032355,30]
[424250715,1780705868000,-408.0,0.00032434,30]
[424250716,1780705868000,-179.97120458,0.00032448,2]
[424250710,1780705868000,-3299.73499116,0.0003238,2]
[424250711,1780705868000,-1250.73,0.00032413,2]
[424250713,1780705868000,-800.0,0.00032434,30]
[424250712,1780705868000,-3299.73499116,0.00032425,2]
[424250704,1780705868000,-587.0,0.00032355,30]
[424250707,1780705868000,-704.0,0.00032355,30]
[424250705,1780705868000,-3806.0,0.00032355,30]
[424250706,1780705868000,-638.0,0.00032355,30]
[424250709,1780705868000,-3297.90507004,0.00032361,2]
[424250708,1780705868000,-3833.0,0.00032356,30]
[424250776,1780705869000,-151.0,0.00032877,7]
[424250782,1780705869000,-219.903157,0.00032877,7]
[424250781,1780705869000,-151.0,0.00032877,7]
[424250783,1780705869000,-1000.0,0.00032877,120]
[424250789,1780705869000,-500.0,0.00032877,2]
[424250780,1780705869000,-151.0,0.00032877,7]
[424250778,1780705869000,-151.0,0.00032877,7]
[424250786,1780705869000,-500.0,0.00032877,2]
[424250779,1780705869000,-151.0,0.00032877,7]
[424250790,1780705869000,-426.16084305,0.00032877,2]
[424250788,1780705869000,-500.0,0.00032877,2]
[424250802,1780705869000,-175.44472394,0.00032906,7]
[424250787,1780705869000,-500.0,0.00032877,2]
[424250785,1780705869000,-288.01,0.00032877,120]
[424250792,1780705869000,-500.0,0.00032877,2]
[424250803,1780705869000,-3297.90507004,0.00032916,2]
[424250791,1780705869000,-500.0,0.00032877,2]
[424250793,1780705869000,-552.43,0.00032877,30]
[424250798,1780705869000,-1034.24,0.00032889,30]
[424250800,1780705869000,-1223.81,0.0003289,2]
[424250775,1780705869000,-151.0,0.00032877,7]
[424250797,1780705869000,-660.87747056,0.00032878,2]
[424250784,1780705869000,-167.63452669,0.00032877,2]
[424250777,1780705869000,-151.0,0.00032877,7]
[424250762,1780705869000,-476.8002016,0.00032876,2]
[424250774,1780705869000,-151.0,0.00032877,7]
[424250799,1780705869000,-1139.21,0.00032889,30]
[424250751,1780705869000,-500.0,0.00032876,2]
[424250753,1780705869000,-606.01865217,0.00032876,2]
[424250752,1780705869000,-500.0,0.00032876,2]